[Event "December 19 Early 2023"]
[Site "https://www.chess.com"]
[Date "2023.12.19"]
[Round "1"]
[White "Khumalo, Keith"]
[Black "Topalov, Aleksandar"]
[Result "1-0"]
[Board "131"]
[TimeControl "180+1"]
[WhiteFideId "14319470"]
[BlackFideId "925659"]
[WhiteElo "2093"]
[BlackElo "2151"]
[WhiteTeam "RSA"]
[BlackTeam "SRB"]
[WhiteClock "0:01:45"]
[BlackClock "0:00:00"]

1. d4 {[%clk 0:03:00]}  Nf6 {[%clk 0:02:59]} 2. c4 {[%clk 0:02:59]}  c5 {[%clk 0:02:58]} 3. d5 {[%clk 0:02:59]}  d6 {[%clk 0:02:58]} 4. Nc3 {[%clk 0:02:59]}  g6 {[%clk 0:02:58]} 5. Nf3 {[%clk 0:02:59]}  Bg7 {[%clk 0:02:54]} 6. h3 {[%clk 0:02:59]}  O-O {[%clk 0:02:53]} 7. Bf4 {[%clk 0:03:00]}  Na6 {[%clk 0:02:43]} 8. e3 {[%clk 0:03:00]}  Nc7 {[%clk 0:02:42]} 9. Be2 {[%clk 0:03:01]}  Rb8 {[%clk 0:02:43]} 10. a4 {[%clk 0:03:00]}  b6 {[%clk 0:02:42]} 11. O-O {[%clk 0:03:00]}  a6 {[%clk 0:02:43]} 12. e4 {[%clk 0:03:01]}  Bd7 {[%clk 0:02:40]} 13. e5 {[%clk 0:03:01]}  Nfe8 {[%clk 0:02:40]} 14. b3 {[%clk 0:02:51]}  b5 {[%clk 0:02:39]} 15. axb5 {[%clk 0:02:52]}  axb5 {[%clk 0:02:39]} 16. Ra7 {[%clk 0:02:51]}  bxc4 {[%clk 0:02:39]} 17. bxc4 {[%clk 0:02:51]}  Bc8 {[%clk 0:02:08]} 18. Qa4 {[%clk 0:02:44]}  Rb4 {[%clk 0:02:02]} 19. Qa5 {[%clk 0:02:44]}  h6 {[%clk 0:01:39]} 20. Re1 {[%clk 0:02:41]}  g5 {[%clk 0:01:35]} 21. Bg3 {[%clk 0:02:41]}  Bd7 {[%clk 0:01:15]} 22. Bf1 {[%clk 0:02:36]}  Rb3 {[%clk 0:01:05]} 23. Ne4 {[%clk 0:02:27]}  Bf5 {[%clk 0:01:01]} 24. exd6 {[%clk 0:02:21]}  exd6 {[%clk 0:00:53]} 25. Nxd6 {[%clk 0:02:21]}  Nxd6 {[%clk 0:00:44]} 26. Qxc7 {[%clk 0:02:21]}  Ne4 {[%clk 0:00:37]} 27. Be5 {[%clk 0:02:16]}  Qxc7 {[%clk 0:00:26]} 28. Rxc7 {[%clk 0:02:16]}  f6 {[%clk 0:00:24]} 29. Bh2 {[%clk 0:02:13]}  Ra8 {[%clk 0:00:20]} 30. Re7 {[%clk 0:02:07]}  Ra2 {[%clk 0:00:08]} 31. R7xe4 {[%clk 0:02:02]}  Bxe4 {[%clk 0:00:08]} 32. Rxe4 {[%clk 0:02:03]}  Rbb2 {[%clk 0:00:08]} 33. g4 {[%clk 0:01:52]}  Bf8 {[%clk 0:00:06]} 34. Bg3 {[%clk 0:01:51]}  Rb3 {[%clk 0:00:06]} 35. Kg2 {[%clk 0:01:48]}  Raa3 {[%clk 0:00:06]} 36. Be2 {[%clk 0:01:46]}  Rb2 {[%clk 0:00:04]} 37. d6 {[%clk 0:01:45]}  Raa2 {[%clk 0:00:04]} 38. Bd3 {[%clk 0:01:45]}  Rb7 {[%clk 0:00:03]} 39. Re3 {[%clk 0:01:44]}  Ra6 {[%clk 0:00:02]} 40. Bf5 {[%clk 0:01:44]}  Bxd6 {[%clk 0:00:02]} 41. Bc8 {[%clk 0:01:44]}  Bxg3 {[%clk 0:00:01]} 42. Bxb7 {[%clk 0:01:45]}  Ra7 {[%clk 0:00:00]} 43. Bd5+ {[%clk 0:01:45]} 1-0

[Event "December 19 Early 2023"]
[Site "https://www.chess.com"]
[Date "2023.12.19"]
[Round "1"]
[White "Rozman, Levy"]
[Black "Pein, Jonathan"]
[Result "1-0"]
[Board "137"]
[TimeControl "180+1"]
[WhiteFideId "2039877"]
[BlackFideId "417092"]
[WhiteElo "2376"]
[BlackElo "2130"]
[WhiteTeam "USA"]
[BlackTeam "ENG"]
[WhiteClock "0:00:34"]
[BlackClock "0:00:08"]

1. d4 {[%clk 0:03:00]}  d6 {[%clk 0:02:58]} 2. Bg5 {[%clk 0:03:00]}  Nd7 {[%clk 0:02:55]} 3. Nc3 {[%clk 0:02:59]}  h6 {[%clk 0:02:54]} 4. Bh4 {[%clk 0:02:59]}  g5 {[%clk 0:02:54]} 5. Bg3 {[%clk 0:03:00]}  Ngf6 {[%clk 0:02:55]} 6. h4 {[%clk 0:03:00]}  Bg7 {[%clk 0:02:47]} 7. hxg5 {[%clk 0:02:59]}  hxg5 {[%clk 0:02:48]} 8. Rxh8+ {[%clk 0:02:59]}  Bxh8 {[%clk 0:02:49]} 9. Qd2 {[%clk 0:02:59]}  Nh7 {[%clk 0:02:29]} 10. Nf3 {[%clk 0:02:55]}  e6 {[%clk 0:02:27]} 11. O-O-O {[%clk 0:02:49]}  a6 {[%clk 0:02:15]} 12. e3 {[%clk 0:02:46]}  f5 {[%clk 0:02:14]} 13. Bc4 {[%clk 0:02:31]}  Ndf6 {[%clk 0:02:05]} 14. Rh1 {[%clk 0:02:30]}  b5 {[%clk 0:01:53]} 15. Nxg5 {[%clk 0:02:25]}  Qe7 {[%clk 0:01:37]} 16. Be2 {[%clk 0:02:17]}  Bb7 {[%clk 0:01:30]} 17. Nxh7 {[%clk 0:02:14]}  Nxh7 {[%clk 0:01:29]} 18. Bh5+ {[%clk 0:02:15]}  Kd7 {[%clk 0:01:28]} 19. Bf3 {[%clk 0:02:14]}  Bxf3 {[%clk 0:01:28]} 20. gxf3 {[%clk 0:02:15]}  Ng5 {[%clk 0:01:20]} 21. Qe2 {[%clk 0:02:07]}  Rb8 {[%clk 0:01:07]} 22. Bh4 {[%clk 0:01:54]}  Bf6 {[%clk 0:01:07]} 23. f4 {[%clk 0:01:49]}  Nf7 {[%clk 0:01:02]} 24. Bxf6 {[%clk 0:01:47]}  Qxf6 {[%clk 0:01:03]} 25. a3 {[%clk 0:01:44]}  Rh8 {[%clk 0:00:43]} 26. Qf3 {[%clk 0:01:41]}  d5 {[%clk 0:00:38]} 27. Rg1 {[%clk 0:01:37]}  Nd6 {[%clk 0:00:36]} 28. b3 {[%clk 0:01:32]}  c5 {[%clk 0:00:35]} 29. Rd1 {[%clk 0:01:25]}  cxd4 {[%clk 0:00:31]} 30. Rxd4 {[%clk 0:01:20]}  Rc8 {[%clk 0:00:28]} 31. Ne2 {[%clk 0:01:13]}  Qe7 {[%clk 0:00:20]} 32. Kb1 {[%clk 0:01:10]}  Ne4 {[%clk 0:00:20]} 33. b4 {[%clk 0:01:00]}  Rc4 {[%clk 0:00:13]} 34. Qg2 {[%clk 0:00:51]}  Kd6 {[%clk 0:00:09]} 35. Qg8 {[%clk 0:00:46]}  Qc7 {[%clk 0:00:07]} 36. Qf8+ {[%clk 0:00:45]}  Kc6 {[%clk 0:00:08]} 37. Rxc4+ {[%clk 0:00:44]}  dxc4 {[%clk 0:00:07]} 38. Nd4+ {[%clk 0:00:45]}  Kb6 {[%clk 0:00:07]} 39. Nxe6 {[%clk 0:00:42]}  Nc3+ {[%clk 0:00:07]} 40. Kb2 {[%clk 0:00:41]}  Na4+ {[%clk 0:00:07]} 41. Kc1 {[%clk 0:00:41]}  Qd7 {[%clk 0:00:05]} 42. Qd8+ {[%clk 0:00:38]}  Qxd8 {[%clk 0:00:04]} 43. Nxd8 {[%clk 0:00:39]}  Nc3 {[%clk 0:00:03]} 44. Ne6 {[%clk 0:00:36]}  Ne4 {[%clk 0:00:04]} 45. f3 {[%clk 0:00:34]}  Nd6 {[%clk 0:00:02]} 46. Nd4 {[%clk 0:00:32]}  a5 {[%clk 0:00:03]} 47. c3 {[%clk 0:00:32]}  axb4 {[%clk 0:00:03]} 48. axb4 {[%clk 0:00:32]}  Kc7 {[%clk 0:00:04]} 49. Ne2 {[%clk 0:00:28]}  Kc6 {[%clk 0:00:03]} 50. Ng3 {[%clk 0:00:29]}  Kd5 {[%clk 0:00:03]} 51. Nxf5 {[%clk 0:00:29]}  Nxf5 {[%clk 0:00:03]} 52. e4+ {[%clk 0:00:28]}  Ke6 {[%clk 0:00:04]} 53. exf5+ {[%clk 0:00:29]}  Kxf5 {[%clk 0:00:05]} 54. Kd2 {[%clk 0:00:29]}  Kxf4 {[%clk 0:00:06]} 55. Ke2 {[%clk 0:00:30]}  Kf5 {[%clk 0:00:03]} 56. Ke3 {[%clk 0:00:30]}  Ke5 {[%clk 0:00:04]} 57. f4+ {[%clk 0:00:31]}  Kf5 {[%clk 0:00:05]} 58. Kf3 {[%clk 0:00:31]}  Kf6 {[%clk 0:00:04]} 59. Ke4 {[%clk 0:00:32]}  Ke6 {[%clk 0:00:05]} 60. Kd4 {[%clk 0:00:32]}  Kf5 {[%clk 0:00:05]} 61. Kc5 {[%clk 0:00:33]}  Kxf4 {[%clk 0:00:06]} 62. Kxb5 {[%clk 0:00:33]}  Ke5 {[%clk 0:00:07]} 63. Kxc4 {[%clk 0:00:34]}  Kd6 {[%clk 0:00:08]} 64. b5 {[%clk 0:00:34]} 1-0

[Event "December 19 Early 2023"]
[Site "https://www.chess.com"]
[Date "2023.12.19"]
[Round "1"]
[White "Marin Pincheira, Carlos"]
[Black "Cristobal, Manuel"]
[Result "0-1"]
[Board "138"]
[TimeControl "180+1"]
[WhiteFideId "3407543"]
[BlackFideId "112879"]
[WhiteElo "2080"]
[BlackElo "2244"]
[WhiteTeam "CHI"]
[BlackTeam "ARG"]
[WhiteClock "0:00:00"]
[BlackClock "0:01:38"]

1. Nf3 {[%clk 0:03:00]}  b6 {[%clk 0:02:54]} 2. g3 {[%clk 0:02:48]}  Bb7 {[%clk 0:02:32]} 3. Bg2 {[%clk 0:02:35]}  e6 {[%clk 0:02:32]} 4. O-O {[%clk 0:02:28]}  Nf6 {[%clk 0:02:32]} 5. c4 {[%clk 0:02:26]}  d5 {[%clk 0:02:31]} 6. Ne5 {[%clk 0:02:23]}  Bd6 {[%clk 0:02:30]} 7. d4 {[%clk 0:02:23]}  O-O {[%clk 0:02:30]} 8. Nc3 {[%clk 0:02:20]}  c5 {[%clk 0:02:28]} 9. cxd5 {[%clk 0:01:59]}  exd5 {[%clk 0:02:26]} 10. Bg5 {[%clk 0:01:55]}  Be7 {[%clk 0:02:25]} 11. Rc1 {[%clk 0:01:12]}  Nbd7 {[%clk 0:02:18]} 12. Nxd7 {[%clk 0:01:04]}  Qxd7 {[%clk 0:02:18]} 13. dxc5 {[%clk 0:01:04]}  d4 {[%clk 0:02:18]} 14. c6 {[%clk 0:00:43]}  Bxc6 {[%clk 0:02:17]} 15. Bxc6 {[%clk 0:00:44]}  Qxc6 {[%clk 0:02:17]} 16. Qxd4 {[%clk 0:00:43]}  Rad8 {[%clk 0:02:17]} 17. Qe3 {[%clk 0:00:15]}  Rfe8 {[%clk 0:02:17]} 18. Rfd1 {[%clk 0:00:13]}  Rxd1+ {[%clk 0:02:16]} 19. Rxd1 {[%clk 0:00:13]}  Bc5 {[%clk 0:02:12]} 20. Qf3 {[%clk 0:00:12]}  Qe6 {[%clk 0:02:12]} 21. Bxf6 {[%clk 0:00:11]}  gxf6 {[%clk 0:02:12]} 22. e3 {[%clk 0:00:12]}  Bd6 {[%clk 0:02:12]} 23. Nd5 {[%clk 0:00:12]}  Be5 {[%clk 0:02:12]} 24. b3 {[%clk 0:00:12]}  f5 {[%clk 0:02:12]} 25. h4 {[%clk 0:00:11]}  Rd8 {[%clk 0:02:11]} 26. Kg2 {[%clk 0:00:11]}  Kf8 {[%clk 0:02:09]} 27. Nf4 {[%clk 0:00:10]}  Qf6 {[%clk 0:02:07]} 28. Nh5 {[%clk 0:00:08]}  Qe7 {[%clk 0:02:08]} 29. Rxd8+ {[%clk 0:00:07]}  Qxd8 {[%clk 0:02:08]} 30. Qxf5 {[%clk 0:00:08]}  Qd5+ {[%clk 0:02:08]} 31. e4 {[%clk 0:00:06]}  Qc5 {[%clk 0:01:52]} 32. Qxh7 {[%clk 0:00:05]}  Bd4 {[%clk 0:01:52]} 33. Qf5 {[%clk 0:00:04]}  Bxf2 {[%clk 0:01:51]} 34. Qxc5+ {[%clk 0:00:02]}  Bxc5 {[%clk 0:01:51]} 35. Kf3 {[%clk 0:00:02]}  Bb4 {[%clk 0:01:51]} 36. e5 {[%clk 0:00:02]}  Bc3 {[%clk 0:01:50]} 37. Ke4 {[%clk 0:00:02]}  Be1 {[%clk 0:01:50]} 38. Kf3 {[%clk 0:00:01]}  Bc3 {[%clk 0:01:50]} 39. Kf4 {[%clk 0:00:01]}  Ke7 {[%clk 0:01:49]} 40. Kf5 {[%clk 0:00:01]}  Be1 {[%clk 0:01:49]} 41. Kf4 {[%clk 0:00:01]}  Bc3 {[%clk 0:01:48]} 42. Kf5 {[%clk 0:00:01]}  Be1 {[%clk 0:01:47]} 43. Nf4 {[%clk 0:00:02]}  Bxg3 {[%clk 0:01:47]} 44. Nd5+ {[%clk 0:00:03]}  Kf8 {[%clk 0:01:47]} 45. h5 {[%clk 0:00:04]}  Kg7 {[%clk 0:01:47]} 46. Nf6 {[%clk 0:00:04]}  Bh4 {[%clk 0:01:46]} 47. Nd7 {[%clk 0:00:04]}  Kh6 {[%clk 0:01:46]} 48. Nf6 {[%clk 0:00:02]}  Kg7 {[%clk 0:01:46]} 49. Nd7 {[%clk 0:00:01]}  Kh6 {[%clk 0:01:44]} 50. Nf6 {[%clk 0:00:02]}  Be1 {[%clk 0:01:44]} 51. Ne8 {[%clk 0:00:03]}  Bg3 {[%clk 0:01:38]} 52. Nd6 {[%clk 0:00:03]}  Kg7 {[%clk 0:01:38]} 53. h6+ {[%clk 0:00:03]}  Kxh6 {[%clk 0:01:38]} 54. Nxf7+ {[%clk 0:00:02]}  Kg7 {[%clk 0:01:39]} 55. Ke6 {[%clk 0:00:03]}  Kg6 {[%clk 0:01:39]} 56. Nd6 {[%clk 0:00:03]}  a6 {[%clk 0:01:38]} 57. Kd7 {[%clk 0:00:03]}  Bxe5 {[%clk 0:01:38]} 58. Nc4 {[%clk 0:00:02]}  Bd4 {[%clk 0:01:38]} 59. Kc6 {[%clk 0:00:02]}  b5 {[%clk 0:01:38]} 60. Na5 {[%clk 0:00:01]}  Kf5 {[%clk 0:01:38]} 61. Nb7 {[%clk 0:00:01]}  b4 {[%clk 0:01:38]} 62. Nc5 {[%clk 0:00:01]}  a5 {[%clk 0:01:38]} 63. Kb5 {[%clk 0:00:00]}  Ke5 {[%clk 0:01:38]} 0-1

[Event "December 19 Early 2023"]
[Site "https://www.chess.com"]
[Date "2023.12.19"]
[Round "1"]
[White "Piesik, Piotr"]
[Black "Kolmagorov, Alexey"]
[Result "1-0"]
[Board "139"]
[TimeControl "180+1"]
[WhiteFideId "1136194"]
[BlackFideId "34129402"]
[WhiteElo "2319"]
[BlackElo "1989"]
[WhiteTeam "CZE"]
[BlackTeam "RUS"]
[WhiteClock "0:02:40"]
[BlackClock "0:00:44"]

1. Nf3 {[%clk 0:03:00]}  Nf6 {[%clk 0:02:59]} 2. g3 {[%clk 0:02:58]}  d5 {[%clk 0:02:59]} 3. Bg2 {[%clk 0:02:59]}  Bg4 {[%clk 0:02:49]} 4. O-O {[%clk 0:02:56]}  Nbd7 {[%clk 0:02:47]} 5. d3 {[%clk 0:02:56]}  c6 {[%clk 0:02:40]} 6. Nbd2 {[%clk 0:02:55]}  e6 {[%clk 0:02:35]} 7. e4 {[%clk 0:02:53]}  Be7 {[%clk 0:02:24]} 8. h3 {[%clk 0:02:52]}  Bxf3 {[%clk 0:02:22]} 9. Qxf3 {[%clk 0:02:53]}  e5 {[%clk 0:01:56]} 10. Qe2 {[%clk 0:02:52]}  O-O {[%clk 0:01:53]} 11. a4 {[%clk 0:02:47]}  Re8 {[%clk 0:01:48]} 12. a5 {[%clk 0:02:46]}  Qc7 {[%clk 0:01:43]} 13. Nb3 {[%clk 0:02:44]}  Nc5 {[%clk 0:01:38]} 14. Nxc5 {[%clk 0:02:44]}  Bxc5 {[%clk 0:01:39]} 15. Bg5 {[%clk 0:02:44]}  dxe4 {[%clk 0:01:14]} 16. Bxf6 {[%clk 0:02:42]}  exd3 {[%clk 0:01:13]} 17. Qg4 {[%clk 0:02:42]}  Bf8 {[%clk 0:00:44]} 18. cxd3 {[%clk 0:02:40]} 1-0

[Event "December 19 Early 2023"]
[Site "https://www.chess.com"]
[Date "2023.12.19"]
[Round "1"]
[White "Hoffmann, Asa"]
[Black "Rendle, Thomas E"]
[Result "0-1"]
[Board "142"]
[TimeControl "180+1"]
[WhiteFideId "2001470"]
[BlackFideId "408760"]
[WhiteElo "2117"]
[BlackElo "2424"]
[WhiteTeam "USA"]
[BlackTeam "ENG"]
[WhiteClock "0:00:56"]
[BlackClock "0:00:26"]

1. d4 {[%clk 0:02:55]}  f5 {[%clk 0:02:57]} 2. Nc3 {[%clk 0:02:53]}  Nf6 {[%clk 0:02:57]} 3. Bg5 {[%clk 0:02:53]}  d5 {[%clk 0:02:57]} 4. f3 {[%clk 0:02:53]}  Nc6 {[%clk 0:02:55]} 5. e4 {[%clk 0:02:52]}  dxe4 {[%clk 0:02:50]} 6. d5 {[%clk 0:02:51]}  Ne5 {[%clk 0:02:49]} 7. fxe4 {[%clk 0:02:50]}  Nxe4 {[%clk 0:02:46]} 8. Nxe4 {[%clk 0:02:49]}  fxe4 {[%clk 0:02:47]} 9. Qd4 {[%clk 0:02:48]}  Nf7 {[%clk 0:02:44]} 10. Bh4 {[%clk 0:02:40]}  c6 {[%clk 0:02:41]} 11. Bc4 {[%clk 0:02:35]}  Qb6 {[%clk 0:01:49]} 12. Qc3 {[%clk 0:02:11]}  e6 {[%clk 0:01:30]} 13. dxe6 {[%clk 0:02:00]}  Bb4 {[%clk 0:01:26]} 14. exf7+ {[%clk 0:01:59]}  Kf8 {[%clk 0:01:24]} 15. O-O-O {[%clk 0:01:55]}  Bxc3 {[%clk 0:01:12]} 16. Rd8+ {[%clk 0:01:12]}  Qxd8 {[%clk 0:01:12]} 17. Bxd8 {[%clk 0:01:12]}  Bf6 {[%clk 0:00:54]} 18. Bxf6 {[%clk 0:01:10]}  gxf6 {[%clk 0:00:53]} 19. Ne2 {[%clk 0:01:09]}  Bf5 {[%clk 0:00:42]} 20. Rf1 {[%clk 0:01:08]}  Bg6 {[%clk 0:00:38]} 21. Rxf6 {[%clk 0:01:07]}  Kg7 {[%clk 0:00:38]} 22. Rf4 {[%clk 0:01:07]}  Rhf8 {[%clk 0:00:36]} 23. Ng3 {[%clk 0:01:05]}  Bxf7 {[%clk 0:00:34]} 24. Rxe4 {[%clk 0:01:05]}  Bxc4 {[%clk 0:00:33]} 25. Rxc4 {[%clk 0:01:05]}  Rad8 {[%clk 0:00:30]} 26. b3 {[%clk 0:01:05]}  Rf2 {[%clk 0:00:28]} 27. Nf5+ {[%clk 0:01:03]}  Rxf5 {[%clk 0:00:27]} 28. g4 {[%clk 0:00:56]}  Rf1+ {[%clk 0:00:26]} 0-1

[Event "December 19 Early 2023"]
[Site "https://www.chess.com"]
[Date "2023.12.19"]
[Round "1"]
[White "Skibbe, Willi"]
[Black "Horobetz, Graham"]
[Result "1-0"]
[Board "146"]
[TimeControl "180+1"]
[WhiteFideId "4682190"]
[BlackFideId "2047322"]
[WhiteElo "2345"]
[BlackElo "2654"]
[WhiteTeam "GER"]
[BlackTeam "USA"]
[WhiteClock "0:01:02"]
[BlackClock "0:00:00"]

1. e4 {[%clk 0:03:00]}  c5 {[%clk 0:03:00]} 2. c3 {[%clk 0:02:58]}  Nf6 {[%clk 0:02:58]} 3. e5 {[%clk 0:02:58]}  Nd5 {[%clk 0:02:59]} 4. Nf3 {[%clk 0:02:59]}  Nc6 {[%clk 0:02:58]} 5. Bc4 {[%clk 0:02:58]}  Nb6 {[%clk 0:02:57]} 6. Bb3 {[%clk 0:02:58]}  d6 {[%clk 0:02:56]} 7. exd6 {[%clk 0:02:55]}  Qxd6 {[%clk 0:02:57]} 8. O-O {[%clk 0:02:55]}  Bf5 {[%clk 0:02:42]} 9. d4 {[%clk 0:02:48]}  cxd4 {[%clk 0:02:39]} 10. cxd4 {[%clk 0:02:48]}  e6 {[%clk 0:02:39]} 11. Nc3 {[%clk 0:02:46]}  Be7 {[%clk 0:02:23]} 12. d5 {[%clk 0:02:37]}  exd5 {[%clk 0:02:09]} 13. Nxd5 {[%clk 0:02:38]}  Nxd5 {[%clk 0:02:09]} 14. Qxd5 {[%clk 0:02:38]}  Qxd5 {[%clk 0:01:59]} 15. Bxd5 {[%clk 0:02:37]}  Rd8 {[%clk 0:02:00]} 16. Bxc6+ {[%clk 0:02:34]}  bxc6 {[%clk 0:02:01]} 17. Be3 {[%clk 0:02:34]}  Bf6 {[%clk 0:01:51]} 18. Bxa7 {[%clk 0:02:28]}  Bxb2 {[%clk 0:01:45]} 19. Rfe1+ {[%clk 0:02:28]}  Kd7 {[%clk 0:01:39]} 20. Rad1+ {[%clk 0:02:27]}  Kc8 {[%clk 0:01:38]} 21. Bd4 {[%clk 0:02:27]}  Ba3 {[%clk 0:01:08]} 22. Bxg7 {[%clk 0:02:23]}  Rxd1 {[%clk 0:01:09]} 23. Bxh8 {[%clk 0:02:13]}  Rxe1+ {[%clk 0:01:08]} 24. Nxe1 {[%clk 0:02:13]}  Bb1 {[%clk 0:01:02]} 25. Bc3 {[%clk 0:02:01]}  Bxa2 {[%clk 0:00:59]} 26. Nd3 {[%clk 0:02:01]}  Be7 {[%clk 0:00:33]} 27. f4 {[%clk 0:01:48]}  Bc4 {[%clk 0:00:31]} 28. Ne5 {[%clk 0:01:47]}  Bd5 {[%clk 0:00:29]} 29. Kf2 {[%clk 0:01:42]}  Bh4+ {[%clk 0:00:18]} 30. g3 {[%clk 0:01:42]}  Be7 {[%clk 0:00:16]} 31. g4 {[%clk 0:01:38]}  Bh4+ {[%clk 0:00:16]} 32. Ke3 {[%clk 0:01:38]}  Kc7 {[%clk 0:00:14]} 33. g5 {[%clk 0:01:36]}  f6 {[%clk 0:00:11]} 34. gxf6 {[%clk 0:01:24]}  Bxf6 {[%clk 0:00:12]} 35. Bd4 {[%clk 0:01:24]}  Bh4 {[%clk 0:00:08]} 36. Nf3 {[%clk 0:01:22]}  Be7 {[%clk 0:00:06]} 37. Ng5 {[%clk 0:01:21]}  Bg8 {[%clk 0:00:04]} 38. h4 {[%clk 0:01:16]}  h6 {[%clk 0:00:04]} 39. Nf3 {[%clk 0:01:16]}  Kd6 {[%clk 0:00:03]} 40. Bg7 {[%clk 0:01:15]}  h5 {[%clk 0:00:01]} 41. Be5+ {[%clk 0:01:14]}  Kd5 {[%clk 0:00:01]} 42. Ng5 {[%clk 0:01:14]}  Bc5+ {[%clk 0:00:01]} 43. Kd3 {[%clk 0:01:11]}  Bf2 {[%clk 0:00:01]} 44. Nf3 {[%clk 0:01:08]}  Bh7+ {[%clk 0:00:01]} 45. Ke2 {[%clk 0:01:07]}  Bg3 {[%clk 0:00:00]} 46. Ke3 {[%clk 0:01:02]} 1-0

[Event "December 19 Early 2023"]
[Site "https://www.chess.com"]
[Date "2023.12.19"]
[Round "1"]
[White "Wadsworth, Matthew J"]
[Black "Biernacki, Mark"]
[Result "1-0"]
[Board "151"]
[TimeControl "180+1"]
[WhiteFideId "415804"]
[BlackFideId "2082322"]
[WhiteElo "2266"]
[BlackElo "1965"]
[WhiteTeam "ENG"]
[BlackTeam "USA"]
[WhiteClock "0:00:25"]
[BlackClock "0:00:00"]

1. c4 {[%clk 0:02:48]}  c6 {[%clk 0:02:59]} 2. Nf3 {[%clk 0:02:46]}  d5 {[%clk 0:03:00]} 3. g3 {[%clk 0:02:46]}  Nf6 {[%clk 0:02:58]} 4. Bg2 {[%clk 0:02:46]}  Bg4 {[%clk 0:02:58]} 5. Ne5 {[%clk 0:02:46]}  Be6 {[%clk 0:02:57]} 6. cxd5 {[%clk 0:02:45]}  Bxd5 {[%clk 0:02:56]} 7. Nf3 {[%clk 0:02:44]}  c5 {[%clk 0:02:54]} 8. Nc3 {[%clk 0:02:41]}  Bc6 {[%clk 0:02:53]} 9. O-O {[%clk 0:02:41]}  e6 {[%clk 0:02:53]} 10. Re1 {[%clk 0:02:35]}  Be7 {[%clk 0:02:52]} 11. e4 {[%clk 0:02:33]}  O-O {[%clk 0:02:51]} 12. d4 {[%clk 0:02:29]}  cxd4 {[%clk 0:02:38]} 13. Nxd4 {[%clk 0:02:26]}  Qc7 {[%clk 0:02:34]} 14. Nxc6 {[%clk 0:02:16]}  Nxc6 {[%clk 0:02:35]} 15. e5 {[%clk 0:02:10]}  Rfd8 {[%clk 0:02:20]} 16. Qa4 {[%clk 0:01:31]}  Nd7 {[%clk 0:02:19]} 17. Nb5 {[%clk 0:01:26]}  Qb6 {[%clk 0:02:12]} 18. Be3 {[%clk 0:01:01]}  Bc5 {[%clk 0:02:12]} 19. Nd6 {[%clk 0:00:48]}  Bxe3 {[%clk 0:01:53]} 20. Rxe3 {[%clk 0:00:47]}  Ndxe5 {[%clk 0:01:51]} 21. Nxb7 {[%clk 0:00:42]}  Rd4 {[%clk 0:00:19]} 22. Qc2 {[%clk 0:00:39]}  Nc4 {[%clk 0:00:11]} 23. Rc3 {[%clk 0:00:33]}  Nb4 {[%clk 0:00:04]} 24. Qa4 {[%clk 0:00:30]}  Rc8 {[%clk 0:00:03]} 25. Rac1 {[%clk 0:00:28]}  Qc7 {[%clk 0:00:00]} 26. Qxb4 {[%clk 0:00:25]} 1-0

[Event "December 19 Early 2023"]
[Site "https://www.chess.com"]
[Date "2023.12.19"]
[Round "1"]
[White "Koridze, Lile"]
[Black "Espinoza Villanueva, Rodrigo"]
[Result "0-1"]
[Board "154"]
[TimeControl "180+1"]
[WhiteFideId "13612514"]
[BlackFideId "5140188"]
[WhiteElo "2061"]
[BlackElo "1907"]
[WhiteTeam "GEO"]
[BlackTeam "MEX"]
[WhiteClock "0:00:01"]
[BlackClock "0:00:07"]

1. d4 {[%clk 0:03:00]}  Nf6 {[%clk 0:02:39]} 2. c4 {[%clk 0:03:00]}  g6 {[%clk 0:02:39]} 3. Nc3 {[%clk 0:02:59]}  Bg7 {[%clk 0:02:39]} 4. e4 {[%clk 0:02:59]}  d6 {[%clk 0:02:39]} 5. Nf3 {[%clk 0:02:59]}  O-O {[%clk 0:02:39]} 6. Be2 {[%clk 0:03:00]}  Bg4 {[%clk 0:02:38]} 7. Be3 {[%clk 0:02:32]}  Nfd7 {[%clk 0:02:36]} 8. O-O {[%clk 0:02:32]}  Nc6 {[%clk 0:02:35]} 9. Qd2 {[%clk 0:02:31]}  Bxf3 {[%clk 0:02:35]} 10. Bxf3 {[%clk 0:02:31]}  e5 {[%clk 0:02:35]} 11. dxe5 {[%clk 0:02:22]}  dxe5 {[%clk 0:02:36]} 12. Rfd1 {[%clk 0:02:21]}  Nd4 {[%clk 0:02:36]} 13. Bg4 {[%clk 0:02:20]}  c6 {[%clk 0:02:33]} 14. Ne2 {[%clk 0:02:18]}  Nf6 {[%clk 0:02:05]} 15. Nxd4 {[%clk 0:01:57]}  exd4 {[%clk 0:02:03]} 16. Qe2 {[%clk 0:01:54]}  c5 {[%clk 0:01:55]} 17. Bg5 {[%clk 0:01:54]}  Qb6 {[%clk 0:01:49]} 18. e5 {[%clk 0:01:52]}  Nxg4 {[%clk 0:01:42]} 19. Qxg4 {[%clk 0:01:52]}  Bxe5 {[%clk 0:01:42]} 20. Rab1 {[%clk 0:01:52]}  Bg7 {[%clk 0:01:42]} 21. b4 {[%clk 0:01:50]}  cxb4 {[%clk 0:01:34]} 22. Be7 {[%clk 0:01:49]}  a5 {[%clk 0:01:13]} 23. Bxf8 {[%clk 0:01:32]}  Kxf8 {[%clk 0:01:13]} 24. a3 {[%clk 0:01:31]}  Kg8 {[%clk 0:01:11]} 25. axb4 {[%clk 0:01:30]}  axb4 {[%clk 0:01:11]} 26. Qe4 {[%clk 0:01:27]}  Rc8 {[%clk 0:01:03]} 27. c5 {[%clk 0:00:57]}  Rxc5 {[%clk 0:00:48]} 28. Qe8+ {[%clk 0:00:56]}  Bf8 {[%clk 0:00:47]} 29. Rxd4 {[%clk 0:00:56]}  Rf5 {[%clk 0:00:32]} 30. Rd2 {[%clk 0:00:52]}  Kg7 {[%clk 0:00:29]} 31. Rbb2 {[%clk 0:00:24]}  h5 {[%clk 0:00:26]} 32. h3 {[%clk 0:00:21]}  Bc5 {[%clk 0:00:23]} 33. Qd7 {[%clk 0:00:16]}  h4 {[%clk 0:00:19]} 34. Qd3 {[%clk 0:00:13]}  Qf6 {[%clk 0:00:17]} 35. Kf1 {[%clk 0:00:10]}  b6 {[%clk 0:00:17]} 36. Rbc2 {[%clk 0:00:07]}  Qe5 {[%clk 0:00:11]} 37. Kg1 {[%clk 0:00:05]}  Qe1+ {[%clk 0:00:08]} 38. Kh2 {[%clk 0:00:06]}  Rxf2 {[%clk 0:00:06]} 39. Rxf2 {[%clk 0:00:02]}  Bxf2 {[%clk 0:00:07]} 40. Rxf2 {[%clk 0:00:01]}  Qxf2 {[%clk 0:00:08]} 41. Qb5 {[%clk 0:00:02]}  Qg3+ {[%clk 0:00:07]} 42. Kg1 {[%clk 0:00:02]}  b3 {[%clk 0:00:07]} 43. Qxb6 {[%clk 0:00:02]}  Qe1+ {[%clk 0:00:06]} 44. Kh2 {[%clk 0:00:03]}  Qe5+ {[%clk 0:00:06]} 45. Kg1 {[%clk 0:00:03]}  b2 {[%clk 0:00:07]} 46. Qb3 {[%clk 0:00:02]}  Qe1+ {[%clk 0:00:07]} 47. Kh2 {[%clk 0:00:01]}  b1=Q {[%clk 0:00:07]} 0-1